Workbook

Sheet masonry bearing
B1: Version: 1.0. | Q1: © 2016 Damian Janicki
E2: YourSpreadsheets™ 2nd Floor, 52 Marcus Hill, London www.YourSpreadsheets.co.uk Tel: 020 7542 8734 | P2: TEST PROJECT
W3: Revision | Z3: A
W4: Page: | Z4: 12
P5: Job No: | S5: 22813 | W5: Date: | Z5: =TODAY() -> 2018-06-20
C6: Member: | E6: BEARING DESIGN EXAMPLE | P6: Prepared By: | S6: DJ | W6: Checked By: | Z6: DJ
C8: MASONRY DATA: | P8: PARTIAL SAFETY FACTORS: | AF8: =MATCH($F$9,$AF$9:$AK$9,0) -> 3
C9: Masonry type: | F9: Aggregate concrete blocks (<25% voids) | P9: Manufacturing control of masonry units: | Z9: Category II | AF9: Clay or calcium silicate bricks | AG9: Autoclaved aerated concrete blocks | AH9: Aggregate concrete blocks (<25% voids) | AI9: Aggregate concrete blocks (25% to 60% voids) | AJ9: Solid aggregate concrete blocks collar jointed | AK9: Solid aggregate concrete blocks laid flat
C10: Lateral supports: | F10: Provide enhanced resistance to lateral movement | P10: Construction control of masonry wall: | Z10: Normal | AF10: Provide simple resistance to lateral movement | AG10: Provide enhanced resistance to lateral movement
C11: Wall type: | M11: Single | P11: Partial safety factor for material strength 'γm' : | Z11: =VLOOKUP(Z9,AJ27:AL28,IF(Z10="Special",2,3),FALSE) -> 3.5 | AF11: Single | AG11: Cavity
C12: Thickness of load bearing leaf 't1' [mm] = | M12: 215 | AF12: =IF(M11="Single",0,M13) -> 0 | AG12: mm | AK12: leaf thickness | AL12: =215 -> 215
C13: Thickness of second leaf 't2' [mm] = | M13: 102.5 | P13: SUMMARY OF RESULTS: | AF13: =M14*1000 -> 2800 | AG13: mm | AK13: bearing width | AL13: =M34 -> 215
C14: Clear height of masonry wall 'h' [m] = | M14: 2.8 | P14: Bearing stress below supported beam = | X14: =FIXED(K42,2)&IF(K44<=1," < "," > ")&FIXED(K43,2) -> 1.75 > 1.57 | AA14: =IF(K44>1,"N/A","OK") -> N/A | AF14: =IF($F$10=$AG$10,0.75,1)*AF13 -> 2100 | AG14: mm | AK14: bearing length | AL14: =M35 -> 150 | AN14: =AF9 -> Clay or calcium silicate bricks | AO14: Autoclaved aerated concrete blocks | AP14: Aggregate concrete blocks (<25% voids) | AQ14: Aggregate concrete blocks (25% to 60% voids) | AR14: Solid aggregate concrete blocks collar jointed | AS14: Solid aggregate concrete blocks laid flat
C15: Compressive unit strength 'punit' [N/mm2] = | M15: 5.2 | P15: Bearing stress below spreader = | X15: =IF(AF44=0,"N/A",FIXED(CHOOSE($AK$50,AL53,AM58,AN54,AO54),2)&IF(CHOOSE($AK$50,AL55,AM60,AN56,AO56)<=1," < "," > ")&FIXED(CHOOSE($AK$50,AL54,AM59,AN55,AO55),2)) -> 1.64 < 2.51 | AA15: =IF(AF44=0,"",IF(CHOOSE($AK$50,AL55,AM60,AN56,AO56)<=1,"OK","NOT OK")) -> OK | AF15: M2 (iv) | AG15: M4 (iii) | AH15: M6 (ii) | AI15: M12 (i) | AK15: edge distance | AL15: =M36 -> 0 | AN15: 5 | AO15: 2.9 | AP15: 2.9
C16: Least horizontal dimension of masonry unit [mm] = | M16: 100 | P16: Bearing stress in wall at 0.4 h below beam = | X16: =FIXED(K52,2)&IF(K54<=1," < "," > ")&FIXED(K53,2) -> 0.32 < 0.96 | AA16: =IF(K54<=1,"OK","NOT OK") -> OK | AF16: Category I | AG16: Category II | AK16: spreader length | AL16: =AA38 -> 440 | AN16: 10 | AO16: 3.6 | AP16: 3.6
C17: =IF($AF$8=6,"As laid height of flat blocks [mm] =","Height of conventionally laid masonry unit [mm] =") -> Height of conventionally laid masonry unit [mm] = | M17: 215 | AF17: Normal | AG17: Special | AK17: spreader height | AL17: =AA39 -> 215 | AN17: 15 | AO17: 5.2 | AP17: 5.2
C18: Mortar strength class/designation = | M18: M2 (iv) | P18: DIAGRAM: | AK18: bearing eccentricity | AL18: =IF(AF34=1,M37,0) -> 0 | AN18: 20 | AO18: 7.3 | AP18: 7.3
C19: Effective thickness of masonry wall 'teff' [mm] = | M19: =MAX(215,AF12,2/3*(215+AF12)) -> 215 | AF19: 1 | AG19: 2 | AH19: >=3 | AK19: =AA38&" x "&AA39&" x "&215&" Spreader" -> 440 x 215 x 215 Spreader | AN19: 30 | AO19: 10.4 | AP19: 10.4
C20: Effective height of masonry wall 'heff' [m] = | M20: =AF14/1000 -> 2.1 | AF20: =$M$15 -> 5.2 | AG20: =$M$15 -> 5.2 | AH20: 5.2 | AN20: 40 | AP20: 17.5
C21: Characteristic compressive strength 'fk' [N/mm2] = | M21: =IF(OR(AF8=1,AF8=5,AF8=6),calculationstables!I7,calculationstables!I13) -> 4.4 | AF21: =IF($AF$8=AF19,"THIS ONE","") ->  | AG21: =IF($AF$8=AG19,"THIS ONE","") ->  | AH21: =IF($AF$8>=AH19,"THIS ONE","") ->  | AN21: 50 | AP21: 22.5
C22: =IF(AE29<>"",AE29,IF(AF29<>"",AF29,"")) ->  | AN22: 75 | AP22: 30
C23: LOADING: | AN23: 100 | AP23: 40
K24: factor | M24: load | AE24: =IF(OR(AND(AF8=1,COUNTIF(AN15:AN25,M15)=0),AND(AF8=2,COUNTIF(AO15:AO19,M15)=0),AND(AF8>=3,COUNTIF(AP15:AP23,M15)=0)),"ERROR: incorrect compressive strength selected",1) -> 1 | AF24: 1 | AN24: 125
C25: Beam dead load reaction 'Rdead' [kN] = | K25: 1.4 | M25: 20 | AE25: 1 | AF25: =IF(AND(M33="Yes",M34>215),"Error: bearing width is greater than wall thickness (t)",1) -> 1 | AH25: =IF(SUM(AE24:AF28)<10,1,0) -> 0 | AN25: 150
C26: Beam imposed load reaction 'Rimposed' [kN] = | K26: 1.6 | M26: 15 | AE26: =IF(AF8=1,"",IF(calculationstables!F31=0,"ERROR: "&VLOOKUP(AF8,calculationstables!B29:G33,6,FALSE),1)) -> 1 | AF26: =IF(AND(M33="No",M35>215),"Error: bearing length is greater than wall thickness (t)",1) -> 1
C27: Wall distributed dead load 'UDLdead' [kN/m] = | K27: 1.4 | M27: 10 | AE27: 1 | AF27: =IF(AND(AF34=1,M37>AG34),"Error: eccentricity is greater than "&AG34&" mm",1) -> 1 | AJ27: Category I | AK27: 2.5 | AL27: 3.1
C28: Wall distributed imposed load 'UDLimposed' [kN/m] = | K28: 1.6 | M28: 10 | AE28: 1 | AF28: =IF(AF44=0,1,IF(AND(M33="Yes",AA38<M35),"Error: length of spreader is less than length of bearing",IF(AND(M33="No",AA38<M34),"Error: length of spreader is less than width of bearing",1))) -> 1 | AJ28: Category II | AK28: 2.8 | AL28: 3.5
C29: Total factored beam reaction 'Rtotal' [kN] = | M29: =K25*20+K26*M26 -> 52 | AE29: =IF(AE24<>1,AE24,IF(AE25<>1,AE25,IF(AE26<>1,AE26,IF(AE27<>1,AE27,IF(AE28<>1,AE28,""))))) ->  | AF29: =IF(AF24<>1,AF24,IF(AF25<>1,AF25,IF(AF26<>1,AF26,IF(AF27<>1,AF27,IF(AF28<>1,AF28,""))))) -> 
C30: Total factored distributed load 'UDLtotal' [kN/m] = | M30: =K27*10+K28*M28 -> 30 | AF30: Yes | AG30: No | AK30: ea | AL30: =(K48^2/2400-0.015)*215 -> 5.321511628
AK31: ex | AL31: =K49 -> 32.5 | AO31: Parallel | AP31: =AND(M33=AF30,AF44=0) -> FALSE
C32: SUPPORTED BEAM DETAILS: | AK32: et | AL32: =0.6*AL31+AL30 -> 24.82151163 | AO32: ParallelSpreader | AP32: =AND(M33=AF30,AF44=1) -> FALSE
C33: Supported beam spans parallel to wall: | M33: No | AF33: =IF(M33="No",M36,0) -> 0 | AK33: em | AL33: =MAX(AL31,AL32) -> 32.5 | AO33: Perpendicular | AP33: =AND(M33=AG30,AF44=0) -> FALSE
C34: Bearing width 'bbearing' [mm] = | M34: 215 | AF34: =IF(AND(M33="Yes",M34<215),1,0) -> 0 | AG34: =215/2-M34/2 -> 0 | AH34: =IF(AND(M33="Yes",M34=215),0,IF(M33="yes",M37,215/2-M35/2)) -> 32.5 | AK34: beta | AL34: =MAX(0,IF(K48<=6,1,IF(AL33<=0.05*215,1,1.1*(1-2*AL33/215)))) -> 0.7674418605 | AO34: PerpendicularSpreader | AP34: =AND(M33=AG30,AF44=1) -> TRUE
C35: Bearing length 'lbearing' [mm] = | M35: 150 | AB35: [All dimensions are in mm. Not to scale]
C36: Edge distance 'cedge' [mm] = | M36: 0 | AF36: Assumed triangular stress distribution
C37: Bearing eccentricity 'ex' [mm] = | M37: 0 | P37: SPREADER (PADSTONE) DETAILS: | AF37: Stress distribution similar to semi-infinite beam on elastic foundation
P38: Spreader length 'lspreader' [mm] = | AA38: 440 | AF38: =MATCH(P40,AF36:AF37,0) -> 1
C39: CALCULATIONS: BEARING STRESS BELOW SUPPORTED BEAM | P39: Spreader height 'hspreader' [mm] = | AA39: 215
C40: Bearing type: | K40: =AM40 -> Type 1 | P40: Assumed triangular stress distribution | AF40: Type 1 | AJ40: Type 2 | AM40: =IF(OR(AJ41=1,AK41=1,AL41=1),AJ40,IF(OR(AF41=1,AG41=1,AH41=1,AI41=1),AF40,"Not applicable")) -> Type 1
C41: Bearing factor: | K41: =AM41 -> 1.25 | AF41: =IF(AND(M33="Yes",M34>=215/2,M35<=3*215),1,0) -> 0 | AG41: =IF(AND(M33="NO",M35>=50,M35<=215/2),1,0) -> 0 | AH41: =IF(AND(M33="No",M35>=215/2,M34<=2*215),1,0) -> 1 | AI41: =IF(AND(M33="No",M35>215/2,M35<=215,M36>=M35,M34<=6*M35),1,0) -> 0 | AJ41: =IF(AND(M33="Yes",M34>=215/2,M35<=2*215),1,0) -> 0 | AK41: =IF(AND(M33="No",M35<=215/2,M35>=50,M36>=M35,M34<=8*M35),1,0) -> 0 | AL41: =IF(AND(M33="No",M35>215/2,M35<=215,M36>=M35,M34<=4*215),1,0) -> 0 | AM41: =IF(AM40="Type 2",1.5,IF(AM40="Type 1",1.25,1)) -> 1.25
C42: Design bearing stress = | K42: =M29/(M34*M35)*1000+M30/215 -> 1.751937984 | M42: N/mm2 | P42: CALCULATIONS: SPREADER DESIGN
C43: Allowable bearing stress = | K43: =K41*M21/Z11 -> 1.571428571 | M43: N/mm2 | P43: Bearing type: | Y43: =IF(AF45=0,"Type 3",AM46) -> Type 3
C44: Utilisation factor = | K44: =K42/K43 -> 1.114869626 | P44: Bearing factor: | Y44: =IF(AF45=0,2,AM47) -> 2 | AF44: =IF(K43<K42,1,0) -> 1
C45: =IF(K42>K43,"Design bearing stress exceeds allowable:", "Bearing stress below beam:") -> Design bearing stress exceeds allowable: | K45: =IF(K42>K43,"Use spreader", "OK") -> Use spreader | P45: =HLOOKUP($AK$50,$AG$52:$AJ$61,$AF53,FALSE) -> LOADING ACTS ECCENTRICALLY OUTSIDE MIDDLE THIRD | AF45: =MAX(0,AF33-(AA38-M34)/2) -> 0
P46: =HLOOKUP($AK$50,$AG$52:$AJ$62,$AF54,FALSE) -> Offset distance = | Y46: =IF(ISTEXT(HLOOKUP($AK$50,$AL$52:$AO$61,$AF53,FALSE)),HLOOKUP($AK$50,$AL$52:$AO$61,$AF53,FALSE),ROUND(HLOOKUP($AK$50,$AL$52:$AO$61,$AF53,FALSE),3)) -> 107.5 | AA46: =HLOOKUP($AK$50,$AQ$52:$AT$61,$AF53,FALSE) -> mm | AF46: Type 1 | AJ46: Type 2 | AM46: =IF(OR(AJ47=1,AK47=1,AL47=1),AJ46,IF(OR(AF47=1,AG47=1,AH47=1,AI47=1),AF46,"Not applicable")) -> Type 1
C47: CALCULATIONS: BEARING STRESS IN WALL AT 0.4 h BELOW BEAM | P47: Design bearing stress = | Y47: 1.639 | AA47: N/mm2 | AF47: =IF(AND(M33="Yes",M34>=215/2,M35<=3*215),1,0) -> 0 | AG47: =IF(AND(M33="NO",M35>=50,M35<=215/2),1,0) -> 0 | AH47: =IF(AND(M33="No",M35>=215/2,M34<=2*215),1,0) -> 1 | AI47: =IF(AND(M33="No",M35>215/2,M35<=215,AF45>=M35,M34<=6*M35),1,0) -> 0 | AJ47: =IF(AND(M33="Yes",M34>=215/2,M35<=2*215),1,0) -> 0 | AK47: =IF(AND(M33="No",M35<=215/2,M35>=50,AF45>=M35,M34<=8*M35),1,0) -> 0 | AL47: =IF(AND(M33="No",M35>215/2,M35<=215,AF45>=M35,M34<=4*215),1,0) -> 0 | AM47: =IF(AM46="Type 2",1.5,IF(AM46="Type 1",1.25,1)) -> 1.25
C48: Slenderness ratio = | K48: =AF14/M19 -> 9.76744186 | P48: Allowable bearing stress = | Y48: 2.514 | AA48: =HLOOKUP($AK$50,$AQ$52:$AT$61,$AF55,FALSE) -> N/mm2
C49: Eccentricity at top of wall = | K49: =AH34 -> 32.5 | M49: mm | P49: Utilisation factor = | Y49: 0.652 | AA49: mm4 | AF49: valid? | AG49: =IF(OR(AND(M33="No",M36>(AA38-M34)/2),AND(M33="Yes",AA38=M35)),1,0) -> 0 | AH49: =IF(OR(AND(M33="No",AF38=2,M36<=(AA38-M34)/2),AND(M33="Yes",AF38=2,AA38>M35)),1,0) -> 0 | AI49: =IF(OR(AND(M33="No",AF38=1,M36<=(AA38-M34)/2,(M36+M34/2)>=AA38/3),AND(M33="Yes",AF38=1,M35/2>=AA38/3)),1,0) -> 0 | AJ49: =IF(OR(AND(M33="No",AF38=1,M36<(AA38-M34)/2,(M36+M34/2)<AA38/3),AND(M33="Yes",AF38=1,M35/2<AA38/3)),1,0) -> 1
C50: Capacity reduction factor 'β' = | K50: =AL34 -> 0.7674418605 | P50: Bearing stress below spreader: | Y50: OK | AA50: mm-1 | AF50: case | AG50: 1 | AH50: 2 | AI50: 3 | AJ50: 4 | AK50: =HLOOKUP(1,AG49:AJ50,2,FALSE) -> 4
C51: Length of bearing distributed at 0.4 h = | K51: =IF(M33="Yes",0.4*AF13+M35,IF(M36<0.4*AF13,M36+M34+0.4*AF13,0.8*AF13+M34)) -> 1335 | M51: mm | AA51: N/mm2
C52: Design bearing stress at 0.4 h = | K52: =M29*1000/(K51*215)+M30/215 -> 0.3207037714 | M52: N/mm2 | AA52: N/mm2 | AF52: 1 | AG52: 1 | AH52: 2 | AI52: 3 | AJ52: 4 | AL52: 1 | AM52: 2 | AN52: 3 | AO52: 4 | AQ52: 1 | AR52: 2 | AS52: 3 | AT52: 4
C53: Allowable bearing stress = | K53: =K50*M21/Z11 -> 0.9647840532 | M53: N/mm2 | AF53: 2 | AG53: LOADING ACTS AT MIDPOINT OF SPREADER | AH53: LOADING ACTS ECCENTRICALLY | AI53: LOADING ACTS ECCENTRICALLY WITHIN MIDDLE THIRD | AJ53: LOADING ACTS ECCENTRICALLY OUTSIDE MIDDLE THIRD | AL53: =M29*1000/(AA38*215)+M30/215 -> 0.689217759 | AM53: =700*M21/1000 -> 3.08 | AN53: =IF(M33="Yes",(AA38-M35)/2,(AA38-M34)/2-M36) -> 112.5 | AO53: =IF(M33="Yes",M35/2,M36+M34/2) -> 107.5 | AQ53: N/mm2 | AR53: kN/mm2 | AS53: mm | AT53: mm
C54: Utilisation factor = | K54: =IF(K53=0,"ERROR",K52/K53) -> 0.3324099008 | AF54: 3 | AG54: Design bearing stress = | AH54: Modulus of elasticity of masonry wall = | AI54: Eccentricity of load = | AJ54: Offset distance = | AL54: =Y44*M21/Z11 -> 2.514285714 | AM54: 30 | AN54: =M29*1000*(1+(6*AN53/AA38))/(AA38*215)+M30/215 -> 1.532481261 | AO54: =2*M29*1000/(3*AO53*215)+M30/215 -> 1.639444745 | AQ54: N/mm2 | AR54: kN/mm2 | AS54: N/mm2 | AT54: N/mm2
C55: =IF(K52<K53,"Design bearing stress at 0.4 h below beam:","Design bearing stress at 0.4 h below beam:") -> Design bearing stress at 0.4 h below beam: | K55: =IF(K52<K53,"OK","NOT OK") -> OK | AF55: 4 | AG55: Allowable bearing stress = | AH55: Modulus of elasticity of spreader = | AI55: Design bearing stress = | AJ55: Design bearing stress = | AL55: =AL53/AL54 -> 0.2741206996 | AM55: =AM53*1000/AF13 -> 1.1 | AN55: =Y44*M21/Z11 -> 2.514285714 | AO55: =Y44*M21/Z11 -> 2.514285714 | AR55: N/mm3 | AS55: N/mm2 | AT55: N/mm2
AF56: 5 | AG56: Utilisation factor = | AH56: Modulus of wall = | AI56: Allowable bearing stress = | AJ56: Allowable bearing stress = | AL56: =IF(AL53>AL54,"NOT OK", "OK") -> OK | AM56: =215*AA39^3/12 -> 178062552.1 | AN56: =AN54/AN55 -> 0.6095095924 | AO56: =AO54/AO55 -> 0.6520518872 | AR56: mm4
C57: DESIGNER'S NOTES | AF57: 6 | AG57: =IF(AL53>AL54,"Design bearing stress exceeds allowable:", "Bearing stress below spreader:") -> Bearing stress below spreader: | AH57: Moment of inertia of spreader = | AI57: Utilisation factor = | AJ57: Utilisation factor = | AM57: =(215*AM55/(4*AM54*1000*AM56))^(1/4) -> 0.001823976869 | AN57: =IF(AN54>AN55,"NOT OK", "OK") -> OK | AO57: =IF(AO54>AO55,"NOT OK", "OK") -> OK | AR57: mm-1
C58: note 1 | AF58: 7 | AH58: Constant 'γ' = | AI58: =IF(AN54>AN55,"Design bearing stress exceeds allowable:", "Bearing stress below spreader:") -> Bearing stress below spreader: | AJ58: =IF(AO54>AO55,"Design bearing stress exceeds allowable:", "Bearing stress below spreader:") -> Bearing stress below spreader: | AM58: =AM55*M29/(2*AM57^3*AM54*AM56)+M30/215 -> 1.021830671 | AR58: N/mm2
C59: note 2 | AF59: 8 | AH59: Design bearing stress = | AM59: =Y44*M21/Z11 -> 2.514285714 | AR59: N/mm2
AF60: 9 | AH60: Allowable bearing stress = | AM60: =AM58/AM59 -> 0.4064099261
C61: Spreadsheet provided by: www.YourSpreadsheets.co.uk | P61: calculations are based on BS 5628-1: 2005 | AF61: 10 | AH61: Utilisation factor = | AM61: =IF(AM58>AM59,"NOT OK", "OK") -> OK
AF62: 11 | AH62: =IF(AM58>AM59,"Design bearing stress exceeds allowable:", "Bearing stress below spreader:") -> Bearing stress below spreader:

Sheet calculationstables (hidden)
I7: =VLOOKUP('masonry bearing'!AF8,$B$22:$F$27,4,TRUE) -> 2.2
I8: =VLOOKUP('masonry bearing'!AF8,B22:F27,5,FALSE) -> 4.4
I9: ='masonry bearing'!M17 -> 215
I10: =IF(B10="Thickness of load bearing leaf;",215,'masonry bearing'!M16) -> 100
I11: =I9/I10 -> 2.15
I13: =VLOOKUP('masonry bearing'!AF8,B22:G27,6,FALSE) -> 4.4
B22: 1 | C22: Table 2a | E22: =P30 -> 2.224 | K22: CS | L22: 5 | M22: 10 | N22: 15 | O22: 20 | P22: 30 | Q22: 40 | R22: 50 | S22: 75 | T22: 100 | U22: 125 | V22: 150 | X22: CS | Y22: 2.9 | Z22: 3.6 | AA22: 5.2 | AB22: 7.3 | AC22: 10.4 | AE22: CS | AF22: 2.9 | AG22: 3.6 | AH22: 5.2 | AI22: 7.3 | AJ22: 10.4 | AK22: 17.5 | AL22: 22.5 | AM22: 30 | AN22: 40 | AP22: CS | AQ22: 2.9 | AR22: 3.6 | AS22: 5.2 | AT22: 7.3 | AU22: 10.4 | AV22: 17.5 | AW22: 22.5 | AX22: 30 | AY22: 40 | BA22: CS | BB22: 2.9 | BC22: 3.6 | BD22: 5.2 | BE22: 7.3 | BF22: 10.4 | BH22: CS | BI22: 2.9 | BJ22: 3.6 | BK22: 5.2 | BL22: 7.3 | BM22: 10.4 | BN22: 17.5 | BO22: 22.5 | BP22: 30 | BQ22: 40 | BS22: CS | BT22: 2.9 | BU22: 3.6 | BV22: 5.2 | BW22: 7.3 | BX22: 10.4 | BY22: 17.5 | BZ22: 22.5 | CA22: 30 | CB22: 40 | CD22: CS | CE22: 2.9 | CF22: 3.6 | CG22: 5.2 | CH22: 7.3 | CI22: 10.4 | CJ22: 17.5 | CK22: 22.5 | CL22: 30 | CM22: 40
B23: 2 | C23: Table 2b | D23: Table 2e | E23: =AB30 -> 2.5 | F23: =BE30 -> 4.4 | G23: =IF(I$11<2,E23+(F23-E23)*(I$11-0.6)/(2-0.6),F23) -> 4.4 | I23: M12 (i) | J23: "i" | K23: M12 (i) | L23: 2.5 | M23: 4 | N23: 5.3 | O23: 6.4 | P23: 8.3 | Q23: 10 | R23: 11.6 | S23: 15.2 | T23: 18.3 | U23: 21.2 | V23: 23.9 | X23: M12 (i) | Y23: 1.4 | Z23: 1.7 | AA23: 2.5 | AB23: 3.4 | AC23: 4.4 | AE23: M12 (i) | AF23: 1.4 | AG23: 1.7 | AH23: 2.5 | AI23: 3.4 | AJ23: 4.4 | AK23: 6.3 | AL23: 7.5 | AM23: 9.5 | AN23: 11.2 | AP23: M12 (i) | AQ23: 2.8 | AR23: 3.5 | AS23: 5 | AT23: 6.8 | AU23: 8.8 | AV23: 12.5 | AW23: 15 | AX23: 18.7 | AY23: 22.1 | BA23: M12 (i) | BB23: 2.8 | BC23: 3.5 | BD23: 5 | BE23: 6.8 | BF23: 8.8 | BH23: M12 (i) | BI23: 2.8 | BJ23: 3.5 | BK23: 5 | BL23: 6.6 | BM23: 8.1 | BN23: 11.2 | BO23: 13.1 | BP23: 16 | BQ23: 19.4 | BS23: M12 (i) | BT23: 2.8 | BU23: 3.4 | BV23: 4.4 | BW23: 5.5 | BX23: 7 | BY23: 9.7 | BZ23: 11.6 | CA23: 14.2 | CB23: 16.5 | CD23: M12 (i) | CE23: 2.8 | CF23: 3.5 | CG23: 4.5 | CH23: 5.6 | CI23: 7.2 | CJ23: 9.7 | CK23: 11.3 | CL23: 13.5 | CM23: 15.4
B24: 3 | C24: Table 2c | D24: Table 2d | E24: =AJ30 -> 2.2 | F24: =AU30 -> 4.4 | G24: =IF(I$11<2,E24+(F24-E24)*(I$11-0.6)/(2-0.6),F24) -> 4.4 | I24: M6 (ii) | J24: "ii" | K24: M6 (ii) | L24: 2.5 | M24: 3.8 | N24: 4.8 | O24: 5.6 | P24: 7.1 | Q24: 8.4 | R24: 9.5 | S24: 12 | T24: 14.2 | U24: 16.1 | V24: 17.9 | X24: M6 (ii) | Y24: 1.4 | Z24: 1.7 | AA24: 2.5 | AB24: 3.2 | AC24: 4.2 | AE24: M6 (ii) | AF24: 1.4 | AG24: 1.7 | AH24: 2.5 | AI24: 3.2 | AJ24: 4.2 | AK24: 5.5 | AL24: 6.5 | AM24: 7.9 | AN24: 9.3 | AP24: M6 (ii) | AQ24: 2.8 | AR24: 3.5 | AS24: 5 | AT24: 6.4 | AU24: 8.4 | AV24: 11.1 | AW24: 13 | AX24: 15.9 | AY24: 18.7 | BA24: M6 (ii) | BB24: 2.8 | BC24: 3.5 | BD24: 5 | BE24: 6.4 | BF24: 8.4 | BH24: M6 (ii) | BI24: 2.8 | BJ24: 3.5 | BK24: 5 | BL24: 6.4 | BM24: 7.5 | BN24: 9.9 | BO24: 11.6 | BP24: 14 | BQ24: 16.7 | BS24: M6 (ii) | BT24: 2.5 | BU24: 2.8 | BV24: 3.5 | BW24: 4.5 | BX24: 5.7 | BY24: 7.9 | BZ24: 9.4 | CA24: 11.6 | CB24: 13.5 | CD24: M6 (ii) | CE24: 2.5 | CF24: 2.9 | CG24: 3.7 | CH24: 4.6 | CI24: 5.9 | CJ24: 7.9 | CK24: 9.1 | CL24: 10.8 | CM24: 12.3
B25: 4 | C25: Table 2c | D25: Table 2f | E25: =AJ30 -> 2.2 | F25: =BM30 -> 4.4 | G25: =IF(I$11<2,E25+(F25-E25)*(I$11-0.6)/(2-0.6),F25) -> 4.4 | I25: M4 (iii) | J25: "iii" | K25: M4 (iii) | L25: 2.5 | M25: 3.4 | N25: 4.3 | O25: 5 | P25: 6.3 | Q25: 7.4 | R25: 8.4 | S25: 10.5 | T25: 12.3 | U25: 14 | V25: 15.4 | X25: M4 (iii) | Y25: 1.4 | Z25: 1.7 | AA25: 2.5 | AB25: 3.2 | AC25: 4.1 | AE25: M4 (iii) | AF25: 1.4 | AG25: 1.7 | AH25: 2.5 | AI25: 3.2 | AJ25: 4.1 | AK25: 5.1 | AL25: 6 | AM25: 7.2 | AN25: 8.2 | AP25: M4 (iii) | AQ25: 2.8 | AR25: 3.5 | AS25: 5 | AT25: 6.4 | AU25: 8.2 | AV25: 10.1 | AW25: 12 | AX25: 14.5 | AY25: 16.8 | BA25: M4 (iii) | BB25: 2.8 | BC25: 3.5 | BD25: 5 | BE25: 6.4 | BF25: 8.2 | BH25: M4 (iii) | BI25: 2.8 | BJ25: 3.5 | BK25: 5 | BL25: 6.1 | BM25: 7.1 | BN25: 9 | BO25: 10.2 | BP25: 12 | BQ25: 14 | BS25: M4 (iii) | BT25: 2.3 | BU25: 2.4 | BV25: 3.1 | BW25: 4 | BX25: 5.1 | BY25: 7 | BZ25: 8.3 | CA25: 10.3 | CB25: 12 | CD25: M4 (iii) | CE25: 2.3 | CF25: 2.5 | CG25: 3.2 | CH25: 4.1 | CI25: 5.2 | CJ25: 7 | CK25: 8.1 | CL25: 9.6 | CM25: 11.1
B26: 5 | C26: Table 2g | E26: =BX30 -> 2.5 | I26: M2 (iv) | J26: "iv" | K26: M2 (iv) | L26: 2.2 | M26: 2.8 | N26: 3.6 | O26: 4.1 | P26: 5.1 | Q26: 6.1 | R26: 7.1 | S26: 9 | T26: 10.5 | U26: 11.6 | V26: 12.7 | X26: M2 (iv) | Y26: 1.4 | Z26: 1.7 | AA26: 2.5 | AB26: 2.8 | AC26: 3.5 | AE26: M2 (iv) | AF26: 1.4 | AG26: 1.7 | AH26: 2.2 | AI26: 2.8 | AJ26: 3.5 | AK26: 4.6 | AL26: 5.3 | AM26: 6.2 | AN26: 7.1 | AP26: M2 (iv) | AQ26: 2.8 | AR26: 3.5 | AS26: 4.4 | AT26: 5.6 | AU26: 7 | AV26: 9.1 | AW26: 10.5 | AX26: 12.5 | AY26: 14.5 | BA26: M2 (iv) | BB26: 2.8 | BC26: 3.5 | BD26: 4.4 | BE26: 5.6 | BF26: 7 | BH26: M2 (iv) | BI26: 2.8 | BJ26: 3.5 | BK26: 4.4 | BL26: 5.8 | BM26: 6.7 | BN26: 8 | BO26: 8.9 | BP26: 10.2 | BQ26: 11.5 | BS26: M2 (iv) | BT26: 2.2 | BU26: 2.3 | BV26: 2.5 | BW26: 3.2 | BX26: 4.1 | BY26: 5.7 | BZ26: 6.8 | CA26: 8.2 | CB26: 9.5 | CD26: M2 (iv) | CE26: 2.2 | CF26: 2.1 | CG26: 2.6 | CH26: 3.3 | CI26: 4.3 | CJ26: 5.7 | CK26: 6.6 | CL26: 7.8 | CM26: 9
B27: 6 | C27: Table 2h | E27: =CI30 -> 2.6 | M27: ? | N27: ='masonry bearing'!AF20 -> 5.2 | P27: M2 (iv) | Y27: ? | Z27: ='masonry bearing'!AG20 -> 5.2 | AB27: M2 (iv) | AG27: ? | AH27: ='masonry bearing'!AH20 -> 5.2 | AJ27: M2 (iv) | AR27: ? | AS27: ='masonry bearing'!AH20 -> 5.2 | AU27: M2 (iv) | BB27: ? | BC27: ='masonry bearing'!AG20 -> 5.2 | BE27: M2 (iv) | BJ27: ? | BK27: ='masonry bearing'!AH20 -> 5.2 | BM27: M2 (iv) | BU27: ? | BV27: ='masonry bearing'!AH20 -> 5.2 | BX27: M2 (iv) | CF27: ? | CG27: ='masonry bearing'!AH20 -> 5.2 | CI27: M2 (iv)
M28: # | N28: =MATCH(N27,K22:V22,1) -> 2 | O28: =N28+1 -> 3 | Y28: # | Z28: =MATCH(Z27,X22:AC22,1) -> 4 | AA28: =Z28+1 -> 5 | AG28: # | AH28: =MATCH(AH27,AE22:AN22,1) -> 4 | AI28: =AH28+1 -> 5 | AR28: # | AS28: =MATCH(AS27,AP22:AY22,1) -> 4 | AT28: =AS28+1 -> 5 | BB28: # | BC28: =MATCH(BC27,BA22:BF22,1) -> 4 | BD28: =BC28+1 -> 5 | BJ28: # | BK28: =MATCH(BK27,BH22:BQ22,1) -> 4 | BL28: =BK28+1 -> 5 | BU28: # | BV28: =MATCH(BV27,BS22:CB22,1) -> 4 | BW28: =BV28+1 -> 5 | CF28: # | CG28: =MATCH(CG27,CD22:CM22,1) -> 4 | CH28: =CG28+1 -> 5
B29: 2 | C29: 0.6 | D29: 4.5 | E29: =IF(OR(I$11<C29,I$11>D29),0,1) -> 1 | G29: height to least horizontal dimension to be between 0.6 and 4.5 | H29: ="" ->  | N29: =VLOOKUP("CS",$K$22:$V$26,N28,FALSE) -> 5 | O29: =VLOOKUP("CS",$K$22:$W$26,O28,FALSE) -> 10 | Z29: =VLOOKUP("CS",X$22:AC$26,Z28,FALSE) -> 5.2 | AA29: =VLOOKUP("CS",X$22:AD$26,AA28,FALSE) -> 7.3 | AH29: =VLOOKUP("CS",$AE$22:$AN$26,AH28,FALSE) -> 5.2 | AI29: =VLOOKUP("CS",$AE$22:$AO$26,AI28,FALSE) -> 7.3 | AS29: =VLOOKUP("CS",AP$22:AY$26,AS28,FALSE) -> 5.2 | AT29: =VLOOKUP("CS",AP$22:AZ$26,AT28,FALSE) -> 7.3 | BC29: =VLOOKUP("CS",BA$22:BF$26,BC28,FALSE) -> 5.2 | BD29: =VLOOKUP("CS",BA$22:BG$26,BD28,FALSE) -> 7.3 | BK29: =VLOOKUP("CS",BH$22:BQ$26,BK28,FALSE) -> 5.2 | BL29: =VLOOKUP("CS",BH$22:BR$26,BL28,FALSE) -> 7.3 | BV29: =VLOOKUP("CS",BS$22:CB$26,BV28,FALSE) -> 5.2 | BW29: =VLOOKUP("CS",BS$22:CC$26,BW28,FALSE) -> 7.3 | CG29: =VLOOKUP("CS",CD$22:CM$26,CG28,FALSE) -> 5.2 | CH29: =VLOOKUP("CS",CD$22:CN$26,CH28,FALSE) -> 7.3
B30: 3 | C30: 0.6 | D30: 4.5 | E30: =IF(OR(I$11<C30,I$11>D30),0,1) -> 1 | G30: height to least horizontal dimension to be between 0.6 and 4.5 | H30: ="" ->  | N30: =VLOOKUP($P27,$K$22:$V$26,N28,FALSE) -> 2.2 | O30: =VLOOKUP($P27,$K$22:$W$26,O28,FALSE) -> 2.8 | P30: =N30+(O30-N30)*(N27-N29)/(O29-N29) -> 2.224 | Z30: =VLOOKUP(AB$27,X$22:AC$26,Z28,FALSE) -> 2.5 | AA30: =VLOOKUP(AB27,$X$22:$AD$26,AA28,FALSE) -> 2.8 | AB30: =Z30+(AA30-Z30)*(Z27-Z29)/(AA29-Z29) -> 2.5 | AH30: =VLOOKUP($AJ27,$AE$22:$AN$26,AH28,FALSE) -> 2.2 | AI30: =VLOOKUP($AJ27,$AE$22:$AO$26,AI28,FALSE) -> 2.8 | AJ30: =AH30+(AI30-AH30)*(AH27-AH29)/(AI29-AH29) -> 2.2 | AS30: =VLOOKUP(AU$27,AP$22:AY$26,AS28,FALSE) -> 4.4 | AT30: =VLOOKUP(AU27,AP$22:AZ$26,AT28,FALSE) -> 5.6 | AU30: =AS30+(AT30-AS30)*(AS27-AS29)/(AT29-AS29) -> 4.4 | BC30: =VLOOKUP(BE$27,BA$22:BF$26,BC28,FALSE) -> 4.4 | BD30: =VLOOKUP(BE27,$BA$22:$BG$26,BD28,FALSE) -> 5.6 | BE30: =BC30+(BD30-BC30)*(BC27-BC29)/(BD29-BC29) -> 4.4 | BK30: =VLOOKUP(BM$27,BH$22:BQ$26,BK28,FALSE) -> 4.4 | BL30: =VLOOKUP(BM27,BH$22:BR$26,BL28,FALSE) -> 5.8 | BM30: =BK30+(BL30-BK30)*(BK27-BK29)/(BL29-BK29) -> 4.4 | BV30: =VLOOKUP(BX$27,BS$22:CB$26,BV28,FALSE) -> 2.5 | BW30: =VLOOKUP(BX27,BS$22:CC$26,BW28,FALSE) -> 3.2 | BX30: =BV30+(BW30-BV30)*(BV27-BV29)/(BW29-BV29) -> 2.5 | CG30: =VLOOKUP(CI$27,CD$22:CM$26,CG28,FALSE) -> 2.6 | CH30: =VLOOKUP(CI27,CD$22:CN$26,CH28,FALSE) -> 3.3 | CI30: =CG30+(CH30-CG30)*(CG27-CG29)/(CH29-CG29) -> 2.6
B31: 4 | C31: 0.6 | D31: 4.5 | E31: =IF(OR(I$11<C31,I$11>D31),0,1) -> 1 | F31: =IF('masonry bearing'!AF8=5,E32,IF('masonry bearing'!AF8=6,E33,E29)) -> 1 | G31: height to least horizontal dimension to be between 0.6 and 4.5 | H31: ="" -> 
B32: 5 | C32: 1 | D32: 1.2 | E32: =IF(OR(I$11<C32,I$11>D32),0,1) -> 0 | G32: height to wall thickness (t) to be between 1 and 1.2 | H32: ="" -> 
B33: 6 | C33: 0.4 | D33: 0.6 | E33: =IF(OR(I$11<C33,I$11>D33),0,1) -> 0 | G33: height to wall thickness (t) to be between 0.4 and 0.6 | H33: ="" -> 
B37: b) | T37: 5 | U37: 10 | V37: 15 | W37: 20 | X37: 30 | Y37: 40 | Z37: 50 | AA37: 75 | AB37: 100 | AC37: 125 | AD37: 150
C38: 2.9 | D38: 3.6 | E38: 5.2 | F38: 7.3 | G38: 10.4 | Q38: M12 | R38: / | S38: (i) | T38: 2.5 | U38: 4 | V38: 5.3 | W38: 6.4 | X38: 8.3 | Y38: 10 | Z38: 11.6 | AA38: 15.2 | AB38: 18.3 | AC38: 21.2 | AD38: 23.9
B39: M12 | C39: 1.4 | D39: 1.7 | E39: 2.5 | F39: 3.4 | G39: 4.4 | Q39: M6 | R39: / | S39: (ii) | T39: 2.5 | U39: 3.8 | V39: 4.8 | W39: 5.6 | X39: 7.1 | Y39: 8.4 | Z39: 9.5 | AA39: 12 | AB39: 14.2 | AC39: 16.1 | AD39: 17.9
B40: M6 | C40: 1.4 | D40: 1.7 | E40: 2.5 | F40: 3.2 | G40: 4.2 | Q40: M4 | R40: / | S40: (iii) | T40: 2.5 | U40: 3.4 | V40: 4.3 | W40: 5 | X40: 6.3 | Y40: 7.4 | Z40: 8.4 | AA40: 10.5 | AB40: 12.3 | AC40: 14 | AD40: 15.4
B41: M4 | C41: 1.4 | D41: 1.7 | E41: 2.5 | F41: 3.2 | G41: 4.1 | Q41: M2 | R41: / | S41: (iv) | T41: 2.2 | U41: 2.8 | V41: 3.6 | W41: 4.1 | X41: 5.1 | Y41: 6.1 | Z41: 7.1 | AA41: 9 | AB41: 10.5 | AC41: 11.6 | AD41: 12.7
B42: M2 | C42: 1.4 | D42: 1.7 | E42: 2.5 | F42: 2.8 | G42: 3.5
B44: c) | R44: 0.05 | S44: 0.1 | T44: 0.2 | U44: 0.3
C45: 2.9 | D45: 3.6 | E45: 5.2 | F45: 7.3 | G45: 10.4 | H45: 17.5 | I45: 22.5 | J45: 30 | K45: 40 | L45: or | M45: greater | Q45: 0 | R45: 1 | S45: 0.88 | T45: 0.66 | U45: 0.44
B46: M12 | C46: 1.4 | D46: 1.7 | E46: 2.5 | F46: 3.4 | G46: 4.4 | H46: 6.3 | I46: 7.5 | J46: 9.5 | K46: 11.2 | Q46: 6 | R46: 1 | S46: 0.88 | T46: 0.66 | U46: 0.44
B47: M6 | C47: 1.4 | D47: 1.7 | E47: 2.5 | F47: 3.2 | G47: 4.2 | H47: 5.5 | I47: 6.5 | J47: 7.9 | K47: 9.3 | Q47: 8 | R47: 1 | S47: 0.88 | T47: 0.66 | U47: 0.44
B48: M4 | C48: 1.4 | D48: 1.7 | E48: 2.5 | F48: 3.2 | G48: 4.1 | H48: 5.1 | I48: 6 | J48: 7.2 | K48: 8.2 | Q48: 10 | R48: 0.97 | S48: 0.88 | T48: 0.66 | U48: 0.44
B49: M2 | C49: 1.4 | D49: 1.7 | E49: 2.2 | F49: 2.8 | G49: 3.5 | H49: 4.6 | I49: 5.3 | J49: 6.2 | K49: 7.1 | Q49: 12 | R49: 0.93 | S49: 0.87 | T49: 0.66 | U49: 0.44
Q50: 14 | R50: 0.89 | S50: 0.83 | T50: 0.66 | U50: 0.44
B51: d) | Q51: 16 | R51: 0.83 | S51: 0.77 | T51: 0.64 | U51: 0.44
C52: 2.9 | D52: 3.6 | E52: 5.2 | F52: 7.3 | G52: 10.4 | H52: 17.5 | I52: 22.5 | J52: 30 | K52: 40 | L52: or | M52: greater | Q52: 18 | R52: 0.77 | S52: 0.7 | T52: 0.57 | U52: 0.44
B53: M12 | C53: 2.8 | D53: 3.5 | E53: 5 | F53: 6.8 | G53: 8.8 | H53: 12.5 | I53: 15 | J53: 18.7 | K53: 22.1 | Q53: 20 | R53: 0.7 | S53: 0.64 | T53: 0.51 | U53: 0.37
B54: M6 | C54: 2.8 | D54: 3.5 | E54: 5 | F54: 6.4 | G54: 8.4 | H54: 11.1 | I54: 13 | J54: 15.9 | K54: 18.7 | Q54: 22 | R54: 0.62 | S54: 0.56 | T54: 0.43 | U54: 0.3
B55: M4 | C55: 2.8 | D55: 3.5 | E55: 5 | F55: 6.4 | G55: 8.2 | H55: 10.1 | I55: 12 | J55: 14.5 | K55: 16.8 | Q55: 24 | R55: 0.53 | S55: 0.47 | T55: 0.34
B56: M2 | C56: 2.8 | D56: 3.5 | E56: 4.4 | F56: 5.6 | G56: 7 | H56: 9.1 | I56: 10.5 | J56: 12.5 | K56: 14.5 | Q56: 26 | R56: 0.45 | S56: 0.38
Q57: 27 | R57: 0.4 | S57: 0.33
B58: e)
C59: 2.9 | D59: 3.6 | E59: 5.2 | F59: 7.3 | G59: 10.4
B60: M12 | C60: 2.8 | D60: 3.5 | E60: 5 | F60: 6.8 | G60: 8.8
B61: M6 | C61: 2.8 | D61: 3.5 | E61: 5 | F61: 6.4 | G61: 8.4
B62: M4 | C62: 2.8 | D62: 3.5 | E62: 5 | F62: 6.4 | G62: 8.2
B63: M2 | C63: 2.8 | D63: 3.5 | E63: 4.4 | F63: 5.6 | G63: 7
B65: f)
C66: 2.9 | D66: 3.6 | E66: 5.2 | F66: 7.3 | G66: 10.4 | H66: 17.5 | I66: 22.5 | J66: 30 | K66: 40 | L66: or | M66: greater
B67: M12 | C67: 2.8 | D67: 3.5 | E67: 5 | F67: 6.6 | G67: 8.1 | H67: 11.2 | I67: 13.1 | J67: 16 | K67: 19.4
B68: M6 | C68: 2.8 | D68: 3.5 | E68: 5 | F68: 6.4 | G68: 7.5 | H68: 9.9 | I68: 11.6 | J68: 14 | K68: 16.7
B69: M4 | C69: 2.8 | D69: 3.5 | E69: 5 | F69: 6.1 | G69: 7.1 | H69: 9 | I69: 10.2 | J69: 12 | K69: 14
B70: M2 | C70: 2.8 | D70: 3.5 | E70: 4.4 | F70: 5.8 | G70: 6.7 | H70: 8 | I70: 8.9 | J70: 10.2 | K70: 11.5
B72: g)
C73: 2.9 | D73: 3.6 | E73: 5.2 | F73: 7.3 | G73: 10.4 | H73: 17.5 | I73: 22.5 | J73: 30 | K73: 40 | L73: or | M73: greater
B74: M12 | C74: 2.8 | D74: 3.4 | E74: 4.4 | F74: 5.5 | G74: 7 | H74: 9.7 | I74: 11.6 | J74: 14.2 | K74: 16.5
B75: M6 | C75: 2.5 | D75: 2.8 | E75: 3.5 | F75: 4.5 | G75: 5.7 | H75: 7.9 | I75: 9.4 | J75: 11.6 | K75: 13.5
B76: M4 | C76: 2.3 | D76: 2.4 | E76: 3.1 | F76: 4 | G76: 5.1 | H76: 7 | I76: 8.3 | J76: 10.3 | K76: 12
B77: M2 | C77: 2.2 | D77: 2.3 | E77: 2.5 | F77: 3.2 | G77: 4.1 | H77: 5.7 | I77: 6.8 | J77: 8.2 | K77: 9.5
B79: h)
C80: 2.9 | D80: 3.6 | E80: 5.2 | F80: 7.3 | G80: 10.4 | H80: 17.5 | I80: 22.5 | J80: 30 | K80: 40 | L80: or | M80: greater
B81: M12 | C81: 2.8 | D81: 3.5 | E81: 4.5 | F81: 5.6 | G81: 7.2 | H81: 9.7 | I81: 11.3 | J81: 13.5 | K81: 15.4
B82: M6 | C82: 2.5 | D82: 2.9 | E82: 3.7 | F82: 4.6 | G82: 5.9 | H82: 7.9 | I82: 9.1 | J82: 10.8 | K82: 12.3
B83: M4 | C83: 2.3 | D83: 2.5 | E83: 3.2 | F83: 4.1 | G83: 5.2 | H83: 7 | I83: 8.1 | J83: 9.6 | K83: 11.1
B84: M2 | C84: 2.2 | D84: 2.1 | E84: 2.6 | F84: 3.3 | G84: 4.3 | H84: 5.7 | I84: 6.6 | J84: 7.8 | K84: 9

Sheet from author
B1: Version: 1.0. - FREE LITE VERSION | G1: © 2016 Damian Janicki
C3: For latest updates and news visit: | G3: Contact me at:
C4: www.YourSpreadsheets.co.uk | G4: info@yourspreadsheets.co.uk
C7: General information: Note: This spreadsheet contains macros.
C13: The Author takes no liability for use of this spreadsheet and gives no guarantee that it is error free. In no event shall the Author be responsible for any special, incidental or consequential damages whatsoever arising from the use of this spreadsheet, even if the Author has been advised of the possibility of such damage. This spreadsheet is a freeware and can be distributed freely but only in its original form. Reverse-engineering, decompiling or disassembling of this spreadsheet is not allowable. By using this spreadsheet you understand and agree with the above terms and conditions. You also acknowledge that you do not become the owner of this spreadsheet. Damian Janicki
C34: This is a Free Lite Version. The full version of the spreadsheet allows to: - Input your company information, change logo and change header information - Change applied axial load - Change column heights in x-axis etc
C41: This spreadsheet is based on BS5628-1 (2005). Changelog: 24.09.2016 - v.1.0. - official release of the spreadsheet.
